bitfinex/quotes_SOLUSD_20251031
["timestamp","ask_amount","ask_price","bid_price","bid_amount"]
[1761934340883,5.52516788,185.9,185.85,5.52516788]
[1761934341196,5.52516788,185.89,185.82,10.56288655]
[1761934341510,5.52516788,185.88,185.82,5.52516788]
[1761934341807,5.52516788,185.88,185.83,6.22516788]
[1761934342133,5.52516788,185.88,185.83,0.7]
[1761934342481,5.52516788,185.86,185.8,6.22516788]
[1761934342789,5.52516788,185.86,185.8,26.81716788]
[1761934343007,5.52516788,185.86,185.81,0.7]
[1761934343210,5.91516788,185.87,185.81,6.22516788]
[1761934343631,5.91516788,185.87,185.81,0.7]
[1761934343798,5.52516788,185.86,185.81,0.7]
[1761934344310,5.52516788,185.84,185.78,6.22516788]
[1761934344526,10.90614742,185.84,185.78,6.22516788]
[1761934344735,10.90614742,185.84,185.78,11.6078743]
[1761934344898,20.982,185.87,185.79,6.22516788]
[1761934345226,5.52516788,185.85,185.79,6.22516788]
[1761934345422,5.52516788,185.82,185.77,4.47135181]
[1761934345622,5.52516788,185.81,185.76,0.86]
[1761934345820,0.81648471,185.85,185.76,0.86]
[1761934345995,5.52516788,185.82,185.76,6.24324791]
[1761934346196,5.52516788,185.82,185.76,11.76841579]
[1761934346404,5.52516788,185.82,185.76,6.38516788]
[1761934346606,10.90688295,185.82,185.76,6.38516788]
[1761934346828,5.52516788,185.81,185.76,0.86]
[1761934347010,5.52516788,185.8,185.76,0.2]
[1761934347623,5.52516788,185.78,185.76,0.2]
[1761934347822,0.39,185.79,185.76,0.2]
[1761934347823,5.91516788,185.79,185.76,0.2]
[1761934348027,18.83559516,185.82,185.76,0.2]
[1761934348028,5.52516788,185.77,185.76,0.2]
[1761934348324,5.91516788,185.77,185.76,0.2]
[1761934348623,11.29816836,185.77,185.76,0.2]
[1761934349006,21.51348076,185.77,185.76,0.2]
[1761934350030,21.51348076,185.77,185.72,0.2]
[1761934350031,0.14216157,185.75,185.72,0.2]
[1761934350211,5.52516788,185.73,185.72,0.2]
[1761934350603,5.91516788,185.73,185.72,0.2]
[1761934351217,11.29932768,185.73,185.72,0.2]
[1761934354307,5.52516788,185.75,185.72,0.2]
[1761934354814,5.52516788,185.75,185.72,0.86]
[1761934355006,5.52516788,185.77,185.72,0.86]
[1761934355237,0.39,185.78,185.72,0.2]
[1761934355238,5.52516788,185.75,185.72,0.2]
[1761934355415,5.52516788,185.74,185.72,0.2]
[1761934355810,5.52516788,185.75,185.72,0.2]
[1761934356733,5.52516788,185.74,185.72,0.2]
[1761934357602,5.52516788,185.75,185.72,0.2]
[1761934358004,13.45677683,185.78,185.72,0.86]
[1761934358005,0.14216157,185.78,185.72,0.86]
[1761934358310,10.07315083,185.78,185.72,0.86]
[1761934358513,5.52516788,185.76,185.72,0.86]
[1761934358718,5.52516788,185.75,185.72,0.2]
[1761934358919,10.2153124,185.76,185.72,0.2]
[1761934359109,5.52516788,185.73,185.72,0.2]
[1761934359517,16.13048028,185.73,185.72,0.2]
[1761934360825,5.52516788,185.73,185.72,0.2]
[1761934362211,21.26632314,185.76,185.72,0.86]
[1761934362212,5.52516788,185.76,185.72,0.86]
[1761934362515,5.52516788,185.78,185.73,5.52516788]
[1761934362714,5.52516788,185.78,185.73,6.18516788]
[1761934362935,5.52516788,185.78,185.74,0.66]
[1761934363322,5.52516788,185.79,185.74,0.66]
[1761934364020,5.52516788,185.79,185.74,6.18516788]
[1761934364226,15.74048028,185.8,185.74,6.18516788]
[1761934364745,5.52516788,185.79,185.74,6.18516788]
[1761934364945,5.52516788,185.79,185.74,0.66]
[1761934365142,5.52516788,185.8,185.75,5.52516788]
[1761934365322,5.52516788,185.8,185.76,0.66]
[1761934366013,5.52516788,185.8,185.72,13.6604483]
[1761934366227,5.52516788,185.8,185.74,5.52516788]
[1761934366736,5.52516788,185.8,185.75,0.66]
[1761934367124,5.52516788,185.8,185.75,6.04353343]
[1761934367326,5.52516788,185.8,185.76,0.66]
[1761934367533,10.90705574,185.81,185.76,0.66]
[1761934368449,5.52516788,185.81,185.76,6.04324476]
[1761934368650,4.15686657,185.88,185.8,5.52516788]
[1761934368651,5.37987475,185.88,185.8,5.52516788]
[1761934368822,0.39,185.9,185.76,26.63524476]
[1761934368823,5.52516788,185.89,185.83,5.52516788]
[1761934369022,16.31510486,185.94,185.77,0.66]
[1761934369023,10.904135,185.91,185.85,5.52516788]
[1761934369337,5.52516788,185.88,185.79,20.592]
[1761934369552,5.52516788,185.88,185.8,0.66]
[1761934369750,5.52516788,185.89,185.83,5.52516788]
[1761934370052,15.31399557,185.9,185.84,5.52516788]
[1761934370252,15.16817967,185.9,185.84,5.52516788]
[1761934370446,20.69334755,185.9,185.84,6.18516788]
[1761934370650,0.39,186.0,185.86,20.592]
[1761934370825,5.52516788,185.93,185.86,20.592]
[1761934371139,5.52516788,185.92,185.86,26.77716788]
[1761934371337,20.592,185.97,185.8,55.96342865]
[1761934371338,5.52516788,185.93,185.87,6.18516788]
[1761934371940,5.52516788,185.93,185.88,10.90498281]
[1761934372129,15.74048028,185.95,185.88,11.56498281]
[1761934372338,15.59831871,185.95,185.88,11.56498281]
[1761934373041,20.97615348,185.95,185.88,11.56498281]
[1761934373417,5.52516788,185.94,185.88,0.66]
[1761934374319,21.36615348,185.95,185.88,6.18516788]
[1761934374516,5.52516788,185.94,185.88,0.66]
[1761934375150,21.36615348,185.95,185.88,6.18516788]
[1761934375328,20.97615348,185.95,185.88,11.56489299]
[1761934375528,15.98831871,185.95,185.88,10.90489299]
[1761934375744,15.98831871,185.95,185.88,6.24516788]
[1761934375745,21.36614426,185.95,185.88,6.24516788]
[1761934375952,5.52516788,185.94,185.88,0.72]
[1761934376452,5.52516788,185.93,185.88,0.72]
[1761934376630,5.52516788,185.94,185.88,6.24516788]
[1761934376820,5.52516788,185.95,185.88,11.62495327]
[1761934377021,10.90308523,185.95,185.89,0.72]
[1761934377222,5.52516788,185.94,185.89,0.72]
[1761934377443,5.37791735,185.95,185.89,0.72]
[1761934377645,10.90308523,185.95,185.89,0.72]
[1761934378249,10.90327938,185.94,185.89,0.72]
[1761934378428,10.90327938,185.94,185.86,5.52516788]
[1761934378429,11.29327938,185.94,185.86,5.52516788]
[1761934378632,5.52516788,185.92,185.85,6.24516788]
[1761934379229,5.52516788,185.91,185.85,0.72]
[1761934379429,5.52516788,185.91,185.86,0.72]
[1761934379853,5.52516788,185.92,185.86,0.72]
[1761934380426,10.90401757,185.92,185.86,0.72]
[1761934380628,5.52516788,185.91,185.86,0.72]
[1761934381945,20.83485047,185.92,185.86,11.62555876]
[1761934382144,20.73416157,185.94,185.87,5.52516788]
[1761934382339,20.73416157,185.94,185.88,5.52516788]
[1761934382340,5.80456827,185.94,185.88,5.52516788]
[1761934382527,9.78882769,185.95,185.88,11.62493148]
[1761934382737,5.52516788,186.0,185.93,5.52516788]
[1761934383038,10.90064495,186.03,185.96,5.52516788]
[1761934383270,10.2153124,186.01,185.95,5.52516788]
[1761934383568,10.2153124,186.01,185.96,5.52516788]
[1761934383862,9.78882769,186.01,185.96,5.52516788]
[1761934384077,31.49264495,186.03,185.97,0.72]
[1761934384239,31.49264495,186.03,185.97,6.24516788]
[1761934384433,15.1640164,186.04,185.99,5.52516788]
[1761934384856,15.1640164,186.04,185.99,6.24516788]
[1761934385157,15.1640164,186.04,185.99,0.72]
[1761934385344,15.5540164,186.04,185.98,5.52516788]
[1761934385540,15.1640164,186.04,185.98,5.52516788]
[1761934385743,15.1640164,186.04,185.98,0.72]
[1761934385744,20.68918428,186.04,185.98,0.72]
[1761934386848,15.1640164,186.04,185.98,6.24516788]
[1761934387866,20.68918428,186.04,185.98,0.72]
[1761934388173,20.68918428,186.04,185.98,6.24516788]
[1761934388174,15.1640164,186.04,185.98,6.24516788]
[1761934388835,15.1640164,186.04,185.99,0.72]
[1761934389363,5.37518871,186.04,185.99,6.24516788]
[1761934389746,5.37518871,186.04,185.99,0.72]
[1761934390063,5.76518871,186.04,185.99,0.72]
[1761934390260,5.37518871,186.04,185.99,0.72]
[1761934391161,5.52516788,186.02,185.96,0.72]
[1761934391345,5.37605505,186.01,185.96,0.72]
[1761934391956,5.37580141,186.02,185.96,6.24516788]
[1761934392166,5.37580141,186.02,185.97,5.52516788]
[1761934392358,5.37580141,186.02,185.97,6.24516788]
[1761934392545,10.90096929,186.02,185.97,0.72]
[1761934392748,11.29096929,186.02,185.95,6.24516788]
[1761934393263,11.29096929,186.02,185.96,6.24516788]
[1761934393264,10.90096929,186.02,185.96,6.24516788]
[1761934393460,5.37544854,186.04,185.98,5.52516788]
[1761934393668,5.37544854,186.04,185.99,5.52516788]
[1761934394169,5.37544854,186.04,186.0,0.72]
[1761934395052,5.37544854,186.04,186.0,6.24516788]
[1761934395252,5.52516788,186.02,185.96,6.24516788]
[1761934395564,0.14216157,186.04,185.99,8.39474635]
[1761934395864,8.39474635,186.03,185.97,9.11474635]
[1761934396260,8.92690792,186.04,185.97,8.39474635]
[1761934396575,8.92690792,186.04,185.98,0.72]
[1761934396760,5.37547707,186.03,185.98,0.72]
[1761934399853,19.00005875,186.02,185.94,0.71]
[1761934400177,19.00005875,186.02,185.94,9.10474635]
[1761934400178,8.39474635,186.0,185.94,9.10474635]
[1761934400471,8.39474635,186.0,185.92,20.592]
[1761934400472,8.39474635,185.97,185.92,0.71]
[1761934401066,0.39,185.99,185.92,0.71]
[1761934401067,8.39474635,185.98,185.92,0.71]
[1761934401774,5.37721137,185.97,185.92,0.71]
[1761934402088,20.592,186.0,185.93,8.39474635]
[1761934402282,8.39474635,185.99,185.94,0.71]
[1761934402501,27.60204319,186.0,185.94,9.10474635]
[1761934402651,5.37643663,186.0,185.95,8.39474635]
[1761934402856,5.37643663,186.0,185.96,8.39474635]
[1761934403070,5.37643663,186.0,185.96,0.71]
[1761934403755,20.592,186.01,185.96,0.71]
[1761934403978,9.78882769,186.02,185.96,9.10474635]
[1761934404168,15.16466977,186.02,185.96,9.10474635]
[1761934404368,23.55941612,186.02,185.96,0.71]
[1761934404573,8.39474635,186.01,185.94,9.10474635]
[1761934404765,8.78474635,186.01,185.94,9.10474635]
[1761934405165,8.78474635,186.01,185.95,0.72]
[1761934405370,8.39474635,186.01,185.95,0.72]
[1761934405783,5.37634408,186.0,185.95,9.11474635]
[1761934405983,15.16477013,186.02,185.96,8.39474635]
[1761934406166,15.16477013,186.02,185.96,9.11474635]
[1761934406804,28.98674635,186.03,185.97,0.72]
[1761934406980,15.16372691,186.05,185.99,8.39474635]
[1761934407188,15.16372691,186.05,185.99,0.72]
[1761934407387,23.55847326,186.05,185.99,0.72]
[1761934407893,36.99572131,186.05,185.99,0.72]
[1761934408897,5.37489922,186.05,186.0,8.39474635]
[1761934409076,5.37489922,186.05,186.01,8.39474635]
[1761934409282,5.37489922,186.05,186.02,0.72]
[1761934409593,20.592,186.06,186.02,0.72]
[1761934409894,5.47433389,186.07,186.03,8.39474635]
[1761934410099,5.47433389,186.07,186.02,9.11474635]
[1761934410478,0.1,186.07,186.04,8.39474635]
[1761934410684,0.1,186.07,186.05,8.39474635]
[1761934410893,0.1,186.07,186.06,0.72]
[1761934413673,0.1,186.07,186.04,9.11474635]
[1761934413981,0.1,186.07,186.05,8.39474635]
[1761934414611,0.1,186.07,186.06,0.72]
[1761934415375,0.1,186.07,186.06,9.11474635]
[1761934416980,0.1,186.07,186.05,8.39474635]
[1761934417179,0.1,186.07,186.04,8.39474635]
[1761934417408,0.1,186.07,186.05,0.72]
[1761934417783,0.1,186.07,186.05,9.11474635]
[1761934418186,0.1,186.07,186.05,8.39474635]
[1761934418412,0.1,186.07,186.0,25.96825144]
[1761934418612,0.1,186.07,186.03,9.11474635]
[1761934418817,0.1,186.07,186.04,9.11474635]
[1761934419119,0.1,186.07,186.05,9.11474635]
[1761934419321,0.1,186.07,186.05,4.10673892]
[1761934421013,0.1,186.07,186.06,0.72]
[1761934422503,0.1,186.07,186.03,3.38673892]
[1761934422504,0.1,186.07,186.03,4.10673892]
[1761934422704,0.1,186.07,186.04,4.10673892]
[1761934424614,0.1,186.07,186.05,0.72]
[1761934425003,0.1,186.07,186.04,3.38673892]
[1761934425224,5.47439522,186.07,186.04,4.10673892]
[1761934425432,5.47439522,186.07,186.01,5.37599128]
[1761934425608,5.47439522,186.07,186.02,0.72]
[1761934426004,5.86439522,186.07,186.01,3.38673892]
[1761934426209,5.86439522,186.07,186.01,4.10673892]
[1761934426622,5.47439522,186.07,186.02,0.72]
[1761934426801,3.38673892,186.05,185.99,24.69873892]
[1761934426996,3.38673892,186.05,185.99,4.10673892]
[1761934427440,3.38673892,186.02,185.97,0.72]
[1761934427601,3.38673892,186.03,185.97,0.72]
[1761934427915,3.77673892,186.04,185.97,4.10673892]
[1761934428124,0.28432314,186.04,185.98,3.38673892]
[1761934428314,4.06106206,186.04,185.97,4.10673892]
[1761934428722,5.37547707,186.03,185.98,0.72]
[1761934429111,9.15221599,186.03,185.98,0.72]
[1761934429505,9.15221599,186.03,185.96,23.97873892]
[1761934429506,3.38673892,186.01,185.96,0.72]
[1761934429712,3.38673892,186.01,185.95,0.72]
[1761934430826,5.37634408,186.0,185.95,4.10673892]
[1761934431032,3.38673892,186.01,185.95,4.10673892]
[1761934431224,8.76286502,186.01,185.96,0.72]
[1761934431415,5.3761261,186.01,185.96,0.72]
[1761934432105,5.3761261,186.01,185.96,4.10673892]
[1761934432325,5.3761261,186.01,185.96,0.72]
[1761934432504,5.3761261,186.01,185.95,5.37775353]
[1761934432505,5.37568508,186.03,185.98,3.38673892]
[1761934432900,9.152424,186.03,185.98,0.72]
[1761934433101,3.38673892,186.02,185.96,0.72]
[1761934433318,22.20111668,186.03,185.96,4.10673892]
[1761934433924,22.20111668,186.03,185.97,0.72]
[1761934434128,22.59111668,186.03,185.97,0.72]
[1761934434816,0.39,186.06,185.97,9.48391768]
[1761934435016,5.37461034,186.06,186.0,3.38673892]
[1761934435220,5.37461034,186.06,186.01,4.04673892]
[1761934435617,5.37461034,186.06,186.02,0.66]
[1761934436316,0.1,186.07,186.03,3.38673892]
[1761934436516,0.1,186.07,186.04,3.38673892]
[1761934437015,5.47432726,186.07,186.03,3.38673892]
[1761934437216,5.47432726,186.07,186.02,0.66]
[1761934437421,5.47432726,186.07,186.02,4.04673892]
[1761934437922,5.47432726,186.07,186.03,0.66]
[1761934438718,0.1,186.07,186.03,4.04673892]
[1761934438918,5.4743639,186.07,186.03,4.04673892]
[1761934439612,5.4743639,186.07,186.04,0.66]
[1761934440341,5.4743639,186.07,186.03,3.38673892]
[1761934440541,0.1,186.07,186.04,0.66]
[1761934440734,0.1,186.07,186.04,9.4218854]
[1761934441033,0.1,186.07,186.05,3.38673892]
[1761934441223,0.1,186.07,186.05,4.04673892]
[1761934441547,0.1,186.07,186.06,0.66]
[1761934442618,0.1,186.07,186.03,3.38673892]
[1761934442840,5.47435743,186.07,186.01,0.66]
[1761934443142,5.47435743,186.07,186.01,4.04673892]
[1761934443622,8.86109635,186.07,186.01,0.66]
[1761934444667,3.38673892,186.05,185.99,8.96024849]
[1761934444856,8.76168304,186.05,185.99,12.34698741]
[1761934445031,8.76168304,186.05,186.0,4.04673892]
[1761934445032,5.37494412,186.05,186.0,4.04673892]
[1761934445414,5.37494412,186.05,186.01,0.66]
[1761934446037,5.37494412,186.05,185.99,13.00698741]
[1761934446217,5.37494412,186.05,186.0,0.66]
[1761934447125,3.77673892,186.04,185.99,8.96024849]
[1761934447324,3.38673892,186.02,185.99,8.96024849]
[1761934447635,3.77673892,186.03,185.99,8.96024849]
[1761934448317,3.77673892,186.02,185.99,8.96024849]
[1761934448529,3.38673892,186.0,185.99,8.96024849]
[1761934448728,34.19405132,186.0,185.99,8.96024849]
[1761934448949,34.58405132,186.0,185.99,8.96024849]
[1761934449136,39.9603954,186.0,185.99,8.96024849]
[1761934449546,20.592,185.96,185.88,0.66]
[1761934449852,3.38673892,185.94,185.88,4.04673892]
[1761934450025,3.38673892,185.94,185.89,0.66]
[1761934450231,20.592,185.96,185.89,4.04673892]
[1761934450431,0.39,185.97,185.92,3.38673892]
[1761934450432,20.592,185.97,185.92,3.38673892]
[1761934450648,3.38673892,185.98,185.92,3.38673892]
[1761934450853,3.38673892,185.98,185.89,20.592]
[1761934450854,25.96834408,186.0,185.96,3.38673892]
[1761934451243,20.592,186.0,185.97,0.66]
[1761934451444,5.3761138,186.01,185.97,0.66]
[1761934451650,0.39,186.0,185.94,8.39429096]
[1761934451955,13.77040476,186.01,185.94,8.39429096]
[1761934452147,13.77040476,186.01,185.95,0.66]
[1761934452352,5.3761138,186.01,185.95,9.05429096]
[1761934452655,26.25183767,186.03,185.97,8.39429096]
[1761934453059,34.64612863,186.03,185.96,0.66]
[1761934453955,26.25183767,186.03,185.96,0.66]
[1761934454147,34.64612863,186.03,185.96,9.05429096]
[1761934454341,34.64612863,186.03,185.96,0.66]
[1761934454546,34.64612863,186.03,185.97,0.66]
[1761934454761,8.39429096,186.02,185.97,0.66]
[1761934455259,35.03612863,186.03,185.97,0.66]
[1761934456360,26.64183767,186.03,185.97,0.66]
[1761934456543,20.592,186.03,185.97,9.05429096]
[1761934456853,25.9675879,186.03,185.97,14.43130729]
[1761934457044,25.9675879,186.03,185.98,0.66]
[1761934457241,20.592,186.03,185.98,0.66]
[1761934457445,20.592,186.03,185.98,6.18307135]
[1761934457848,20.592,186.03,185.99,0.66]
[1761934459458,25.96756423,186.03,185.99,0.66]
[1761934459851,25.96756423,186.03,185.95,5.37763657]
[1761934459852,25.96756423,186.03,185.97,6.18307135]
[1761934460052,25.96756423,186.03,185.97,5.52307135]
[1761934460265,25.96756423,186.03,185.97,6.18307135]
[1761934460638,0.39,186.02,185.93,0.66]
[1761934460841,5.52307135,185.99,185.92,0.66]
[1761934461337,5.52307135,185.95,185.9,0.66]
[1761934461981,10.89999359,185.98,185.91,5.52307135]
[1761934462279,5.37692224,185.98,185.92,0.67]
[1761934462448,5.52307135,185.97,185.89,5.52307135]
[1761934462648,5.91307135,185.97,185.89,6.19307135]
[1761934462855,5.91307135,185.97,185.9,0.67]
[1761934463046,5.52307135,185.97,185.9,0.67]
[1761934463366,5.37750053,185.96,185.9,0.67]
[1761934463540,5.52307135,185.95,185.9,0.67]
[1761934464059,5.52307135,185.96,185.9,11.57227188]
[1761934464252,5.52307135,185.96,185.91,0.67]
[1761934464667,10.90030199,185.97,185.91,6.19307135]
[1761934465174,10.90030199,185.97,185.92,0.67]
[1761934466057,5.52307135,185.96,185.92,0.67]
[1761934466877,10.90030199,185.97,185.92,0.67]
[1761934468463,5.52307135,185.95,185.9,0.67]
[1761934469087,10.90109245,185.95,185.9,0.67]
[1761934469244,5.52307135,185.93,185.9,0.67]
[1761934469440,20.73416157,185.99,185.9,0.67]
[1761934469441,0.14216157,185.98,185.91,5.52307135]
[1761934469646,26.11507135,185.97,185.9,0.67]
[1761934469878,5.52307135,185.96,185.9,6.19307135]
[1761934470380,5.52307135,185.96,185.91,0.67]
[1761934470874,5.52307135,185.95,185.88,5.52307135]
[1761934471056,5.3783682,185.93,185.89,0.67]
[1761934473969,14.1183974,185.96,185.89,0.67]
[1761934473970,2.17146196,185.95,185.89,2.84146196]
[1761934474182,5.37764347,185.96,185.91,2.17146196]
[1761934474362,5.37764347,185.96,185.92,0.67]
[1761934475174,22.76346196,185.97,185.92,0.67]
[1761934475175,7.54869877,185.97,185.92,0.67]
[1761934476055,2.17146196,185.97,185.92,0.67]
[1761934477772,7.54876943,185.97,185.92,0.67]
[1761934479570,5.37730747,185.97,185.92,0.67]
[1761934479878,7.54876943,185.97,185.92,0.67]
[1761934480179,5.37730747,185.97,185.92,0.67]
[1761934481166,5.37730747,185.97,185.92,2.84146196]
[1761934481676,5.37730747,185.97,185.93,0.67]
[1761934482068,2.17146196,185.98,185.93,0.67]
[1761934482269,7.54837209,185.99,185.93,2.84146196]
[1761934482679,7.54837209,185.99,185.94,0.67]
[1761934482869,5.37691013,185.99,185.94,0.67]
[1761934483279,7.54837209,185.99,185.94,0.67]
[1761934484161,5.37691013,185.99,185.94,0.67]
[1761934484475,7.54837209,185.99,185.94,0.67]
[1761934485758,22.76346196,186.0,185.94,8.2194205]
[1761934485975,20.592,186.0,185.96,2.17146196]
[1761934486178,5.37613472,186.01,185.97,2.17146196]
[1761934486666,5.37613472,186.01,185.97,2.84146196]
[1761934486867,5.37613472,186.01,185.97,0.67]
[1761934488476,2.17146196,186.02,185.97,0.67]
[1761934488683,16.00023039,186.03,185.97,0.67]
[1761934488887,5.37594686,186.02,185.97,0.67]
[1761934489591,5.37594686,186.02,185.97,2.84146196]
[1761934489797,5.37594686,186.02,185.98,0.67]
[1761934491187,5.80196178,186.03,185.98,0.67]
[1761934491392,8.36342374,186.03,185.98,0.67]
[1761934492376,7.97342374,186.03,185.98,0.67]
[1761934492994,8.36342374,186.03,185.98,0.67]
[1761934494910,5.37605505,186.01,185.98,0.67]
[1761934495989,5.37576604,186.02,185.98,0.67]
[1761934500205,2.56146196,186.01,185.95,0.68]
[1761934500404,2.56146196,186.01,185.91,6.6414904]
[1761934500405,2.17146196,185.98,185.91,6.6414904]
[1761934500584,2.17146196,185.99,185.93,0.68]
[1761934500986,2.17146196,185.99,185.93,2.85146196]
[1761934501188,7.5483299,185.99,185.93,2.85146196]
[1761934501480,9.78882769,186.04,185.97,2.17146196]
[1761934501787,5.37461034,186.06,186.0,2.17146196]
[1761934501984,2.17146196,186.05,185.97,20.592]
[1761934502185,5.37461034,186.06,185.99,8.96024849]
[1761934502385,2.56146196,186.05,185.99,8.96024849]
[1761934502600,2.56146196,186.05,185.99,9.64024849]
[1761934502797,0.39,186.05,186.0,0.68]
[1761934503100,20.98259815,186.06,186.0,0.68]
[1761934503406,2.17146196,186.05,186.0,0.68]
[1761934503785,2.17146196,186.04,186.0,0.68]
[1761934503981,2.17146196,186.01,185.99,8.96024849]
[1761934504490,2.17146196,186.0,185.99,8.96024849]
[1761934504680,2.17146196,186.01,185.99,8.96024849]
[1761934504884,2.17146196,186.0,185.99,8.96024849]
[1761934505082,17.76311844,186.0,185.99,8.96024849]
[1761934505295,7.54780604,186.0,185.99,8.96024849]
[1761934505881,9.78882769,186.01,185.99,8.96024849]
[1761934505882,15.16489343,186.01,185.99,8.96024849]
[1761934506099,2.17146196,186.03,186.0,0.68]
[1761934506295,2.17146196,186.02,186.0,0.68]
[1761934506596,2.17146196,186.02,185.99,8.96024849]
[1761934506799,2.17146196,186.02,185.99,9.64024849]
[1761934507217,7.54724213,186.02,185.99,9.64024849]
[1761934507502,2.17146196,186.03,186.0,0.68]
[1761934508093,2.17146196,186.04,186.0,0.68]
[1761934508289,5.37512538,186.05,186.0,0.68]
[1761934508492,2.17146196,186.04,186.0,0.68]
[1761934509608,2.17146196,186.03,185.99,8.96024849]
[1761934509924,2.17146196,186.03,186.0,0.68]
[1761934510286,2.17146196,186.04,186.0,0.68]
[1761934510489,2.27146196,186.07,186.01,2.17146196]
[1761934510704,2.17146196,186.06,186.02,0.68]
[1761934511011,2.17146196,186.06,186.0,0.68]
[1761934511012,2.17146196,186.04,186.0,0.68]
[1761934511596,2.17146196,186.03,185.99,8.96024849]
[1761934511802,2.17146196,186.03,186.0,0.68]
[1761934511995,0.39,186.06,186.0,0.68]
[1761934511996,2.17146196,186.02,186.0,0.68]
[1761934512416,2.17146196,186.01,185.99,8.96024849]
[1761934512710,2.17146196,186.03,185.99,9.64024849]
[1761934512923,2.17146196,186.02,185.99,9.64024849]
[1761934513317,2.17146196,186.03,186.0,0.68]
[1761934513520,2.17146196,186.04,186.0,0.68]
[1761934513726,2.17146196,186.05,186.0,0.68]
[1761934515092,2.17146196,186.04,186.0,0.68]
[1761934515817,7.54668356,186.04,186.0,0.68]
[1761934516018,2.17146196,186.03,185.99,8.96024849]
[1761934516224,7.54668356,186.04,186.0,0.68]
[1761934516735,2.17146196,186.02,185.99,8.96024849]
[1761934516922,2.17146196,186.02,185.99,9.64024849]
[1761934517395,3.38974877,186.02,185.99,9.64024849]
[1761934517799,5.7652216,186.04,185.99,8.96024849]
[1761934517800,3.38974877,186.0,185.99,8.96024849]
[1761934518516,3.77974877,186.0,185.99,8.96024849]
[1761934518926,8.76580382,186.01,185.99,8.96024849]
[1761934519429,5.37605505,186.01,185.99,8.96024849]
[1761934519807,29.35750821,186.03,185.99,8.96024849]
[1761934520012,25.96756497,186.03,186.0,0.71]
[1761934520203,25.96756497,186.03,185.99,9.67024849]
[1761934520405,29.35731374,186.03,185.99,9.67024849]
[1761934520604,29.35731374,186.03,186.0,0.71]
[1761934520834,3.38974877,186.04,186.0,0.71]
[1761934521010,8.76498099,186.04,186.0,0.71]
[1761934522350,3.38974877,186.03,186.0,0.71]
[1761934522509,3.38974877,186.03,185.99,8.96024849]
[1761934522714,3.77974877,186.03,185.99,8.96024849]
[1761934523219,3.38974877,186.02,185.99,8.96024849]
[1761934523404,3.38974877,186.01,185.99,8.96024849]
[1761934523610,18.81320254,186.04,185.99,8.96024849]
[1761934523611,3.38974877,186.0,185.99,8.96024849]
[1761934523812,3.38974877,186.01,185.99,8.96024849]
[1761934524015,3.38974877,186.02,185.99,8.96024849]
[1761934524541,3.38974877,186.02,185.99,9.67024849]
[1761934524743,5.37551312,186.03,186.0,0.71]
[1761934525045,8.76526189,186.03,185.99,9.67024849]
[1761934525339,8.76526189,186.03,186.0,0.72]
[1761934526837,9.93098926,186.0,185.99,8.96024849]
[1761934527030,9.93098926,186.0,185.9,5.99516387]
[1761934527031,9.78882769,185.97,185.9,0.72]
[1761934527220,3.38974877,185.93,185.9,0.72]
[1761934527420,9.78882769,185.97,185.9,0.72]
[1761934527421,3.38974877,185.92,185.9,0.72]
[1761934527825,3.38974877,185.91,185.85,3.38974877]
[1761934528016,0.14216157,185.96,185.86,0.72]
[1761934528017,3.38974877,185.9,185.86,0.72]
[1761934528218,3.38974877,185.9,185.84,3.38974877]
[1761934528219,3.38974877,185.88,185.82,5.38132512]
[1761934528549,3.38974877,185.87,185.83,0.72]
[1761934529729,3.38974877,185.88,185.83,0.72]
[1761934530038,5.37895528,185.91,185.84,3.38974877]
[1761934530231,3.38974877,185.89,185.84,3.38974877]
[1761934530436,8.76870405,185.91,185.85,9.49038586]
[1761934530636,8.76870405,185.91,185.85,0.72]
[1761934530834,3.38974877,185.86,185.8,0.72]
[1761934531014,3.38974877,185.83,185.8,0.72]
[1761934531427,3.38974877,185.84,185.8,0.72]
[1761934531940,31.05515083,185.87,185.8,0.72]
[1761934532141,3.38974877,185.81,185.79,0.2]
[1761934532448,3.38974877,185.8,185.79,0.2]
[1761934532847,3.38974877,185.81,185.79,0.92]